[Event "Titled Tuesday Blitz June 20 Late 2023"]
[White "Bilan, Danila"]
[Black "Harsh Suresh"]
[WhiteFideId "24161918"]
[BlackFideId "45018464"]
[WhiteElo "2146"]
[BlackElo "2209"]
[Result "1/2-1/2"]
[Round "3"]
[TimeControl "180+2"]
[Date "2023.06.20"]
[WhiteClock "0:00:07"]
[BlackClock "0:00:04"]
[Board "66"]

1. d4 {[%clk 0:03:00]}  d6 {[%clk 0:02:56]} 2. Nf3 {[%clk 0:03:01]}  Nd7 {[%clk 0:02:52]} 3. Bg5 {[%clk 0:02:54]}  Ngf6 {[%clk 0:02:45]} 4. Nbd2 {[%clk 0:02:53]}  e5 {[%clk 0:02:40]} 5. e3 {[%clk 0:02:52]}  Be7 {[%clk 0:02:40]} 6. Bc4 {[%clk 0:02:44]}  e4 {[%clk 0:02:36]} 7. Ng1 {[%clk 0:02:42]}  d5 {[%clk 0:02:35]} 8. Bb3 {[%clk 0:02:41]}  a5 {[%clk 0:02:19]} 9. a3 {[%clk 0:02:28]}  c5 {[%clk 0:02:11]} 10. c3 {[%clk 0:02:23]}  Qb6 {[%clk 0:02:09]} 11. Qc2 {[%clk 0:02:10]}  c4 {[%clk 0:02:02]} 12. Ba2 {[%clk 0:02:08]}  a4 {[%clk 0:02:02]} 13. f3 {[%clk 0:02:03]}  h6 {[%clk 0:01:55]} 14. Bh4 {[%clk 0:02:00]}  exf3 {[%clk 0:01:42]} 15. Ngxf3 {[%clk 0:02:01]}  Nf8 {[%clk 0:01:28]} 16. Bxf6 {[%clk 0:01:50]}  Bxf6 {[%clk 0:01:28]} 17. e4 {[%clk 0:01:51]}  Qe6 {[%clk 0:01:16]} 18. O-O {[%clk 0:01:51]}  b5 {[%clk 0:01:16]} 19. Rae1 {[%clk 0:01:43]}  Kd8 {[%clk 0:01:06]} 20. Bb1 {[%clk 0:01:27]}  Bb7 {[%clk 0:01:05]} 21. exd5 {[%clk 0:01:21]}  Qxd5 {[%clk 0:01:06]} 22. Ne4 {[%clk 0:01:19]}  Ne6 {[%clk 0:00:59]} 23. Qf2 {[%clk 0:01:05]}  Kc7 {[%clk 0:00:49]} 24. Ne5 {[%clk 0:01:00]}  Raf8 {[%clk 0:00:45]} 25. Nxf6 {[%clk 0:00:58]}  gxf6 {[%clk 0:00:45]} 26. Be4 {[%clk 0:00:58]}  Qxe4 {[%clk 0:00:32]} 27. Rxe4 {[%clk 0:00:55]}  Bxe4 {[%clk 0:00:33]} 28. Qxf6 {[%clk 0:00:55]}  Rhg8 {[%clk 0:00:29]} 29. g3 {[%clk 0:00:46]}  Ng5 {[%clk 0:00:23]} 30. Qe7+ {[%clk 0:00:46]}  Kc8 {[%clk 0:00:19]} 31. Rf6 {[%clk 0:00:40]}  Rd8 {[%clk 0:00:08]} 32. Nxf7 {[%clk 0:00:28]}  Rd7 {[%clk 0:00:05]} 33. Qc5+ {[%clk 0:00:27]}  Rc7 {[%clk 0:00:06]} 34. Nd6+ {[%clk 0:00:24]}  Kd8 {[%clk 0:00:06]} 35. Qb6 {[%clk 0:00:18]}  Nh3+ {[%clk 0:00:03]} 36. Kf1 {[%clk 0:00:17]}  Bd3+ {[%clk 0:00:03]} 37. Kg2 {[%clk 0:00:16]}  Ng5 {[%clk 0:00:04]} 38. Nxb5 {[%clk 0:00:16]}  Rg7 {[%clk 0:00:03]} 39. Nxc7 {[%clk 0:00:16]}  Rxc7 {[%clk 0:00:04]} 40. Rc6 {[%clk 0:00:15]}  Be4+ {[%clk 0:00:04]} 41. Kf2 {[%clk 0:00:15]}  Bxc6 {[%clk 0:00:05]} 42. h4 {[%clk 0:00:14]}  Ne4+ {[%clk 0:00:03]} 43. Ke3 {[%clk 0:00:15]}  Nf6 {[%clk 0:00:04]} 44. Qb8+ {[%clk 0:00:13]}  Kd7 {[%clk 0:00:04]} 45. Qh8 {[%clk 0:00:10]}  Nd5+ {[%clk 0:00:04]} 46. Kd2 {[%clk 0:00:10]}  Rb7 {[%clk 0:00:04]} 47. Kc1 {[%clk 0:00:09]}  Kc7 {[%clk 0:00:03]} 48. Qxh6 {[%clk 0:00:09]}  Kb6 {[%clk 0:00:03]} 49. Qd6 {[%clk 0:00:09]}  Re7 {[%clk 0:00:04]} 50. Qc5+ {[%clk 0:00:09]}  Kb7 {[%clk 0:00:05]} 51. Qxc4 {[%clk 0:00:08]}  Re1+ {[%clk 0:00:04]} 52. Kd2 {[%clk 0:00:09]}  Rd1+ {[%clk 0:00:03]} 53. Ke2 {[%clk 0:00:06]}  Rb1 {[%clk 0:00:04]} 54. Qc5 {[%clk 0:00:04]}  Rxb2+ {[%clk 0:00:04]} 55. Ke1 {[%clk 0:00:03]}  Rb3 {[%clk 0:00:04]} 56. c4 {[%clk 0:00:04]}  Nb6 {[%clk 0:00:04]} 57. d5 {[%clk 0:00:04]}  Bd7 {[%clk 0:00:04]} 58. Qe7 {[%clk 0:00:04]}  Rxg3 {[%clk 0:00:04]} 59. c5 {[%clk 0:00:03]}  Rg1+ {[%clk 0:00:01]} 60. Kf2 {[%clk 0:00:03]}  Rg6 {[%clk 0:00:02]} 61. cxb6 {[%clk 0:00:04]}  Rxb6 {[%clk 0:00:02]} 62. Qxd7+ {[%clk 0:00:04]}  Ka6 {[%clk 0:00:03]} 63. Qxa4+ {[%clk 0:00:05]}  Kb7 {[%clk 0:00:03]} 64. Qb4 {[%clk 0:00:06]}  Ka7 {[%clk 0:00:03]} 65. Qxb6+ {[%clk 0:00:06]}  Ka8 {[%clk 0:00:04]} 66. h5 {[%clk 0:00:07]} 1/2-1/2


[Site "https://www.chess.com"]

[Event "Titled Tuesday Blitz June 20 Late 2023"]
[White "Xu, Yi"]
[Black "Papayan, Oleg"]
[WhiteFideId "8605564"]
[BlackFideId "4193911"]
[WhiteElo "2460"]
[BlackElo "2167"]
[Result "0-1"]
[Round "3"]
[TimeControl "180+2"]
[Date "2023.06.20"]
[WhiteClock "0:00:35"]
[BlackClock "0:00:18"]
[Board "67"]

1. d4 {[%clk 0:03:00]}  Nf6 {[%clk 0:02:55]} 2. c4 {[%clk 0:03:01]}  e6 {[%clk 0:02:55]} 3. Nf3 {[%clk 0:03:01]}  d5 {[%clk 0:02:55]} 4. Nc3 {[%clk 0:03:01]}  c5 {[%clk 0:02:55]} 5. cxd5 {[%clk 0:02:58]}  Nxd5 {[%clk 0:02:56]} 6. e4 {[%clk 0:02:57]}  Nxc3 {[%clk 0:02:57]} 7. bxc3 {[%clk 0:02:58]}  cxd4 {[%clk 0:02:58]} 8. cxd4 {[%clk 0:02:58]}  Bb4+ {[%clk 0:02:59]} 9. Bd2 {[%clk 0:02:59]}  Bxd2+ {[%clk 0:02:59]} 10. Qxd2 {[%clk 0:03:00]}  O-O {[%clk 0:03:00]} 11. h4 {[%clk 0:02:53]}  b6 {[%clk 0:02:49]} 12. h5 {[%clk 0:02:53]}  h6 {[%clk 0:02:49]} 13. Rh3 {[%clk 0:02:51]}  Bb7 {[%clk 0:02:40]} 14. Bd3 {[%clk 0:02:50]}  Nc6 {[%clk 0:02:34]} 15. Rg3 {[%clk 0:02:38]}  Kh8 {[%clk 0:02:31]} 16. e5 {[%clk 0:02:34]}  Nxd4 {[%clk 0:02:21]} 17. Kf1 {[%clk 0:02:28]}  Nxf3 {[%clk 0:02:16]} 18. gxf3 {[%clk 0:02:29]}  Qd4 {[%clk 0:01:55]} 19. Re1 {[%clk 0:02:20]}  Rfd8 {[%clk 0:01:50]} 20. Re3 {[%clk 0:02:04]}  Ba6 {[%clk 0:01:36]} 21. f4 {[%clk 0:02:01]}  Qxf4 {[%clk 0:01:15]} 22. Qe2 {[%clk 0:01:30]}  Rxd3 {[%clk 0:00:52]} 23. Rxd3 {[%clk 0:01:31]}  Bxd3 {[%clk 0:00:46]} 24. Rxd3 {[%clk 0:01:31]}  Rc8 {[%clk 0:00:44]} 25. Kg2 {[%clk 0:01:29]}  Rc4 {[%clk 0:00:38]} 26. Rg3 {[%clk 0:01:07]}  Qe4+ {[%clk 0:00:29]} 27. Qxe4 {[%clk 0:01:01]}  Rxe4 {[%clk 0:00:30]} 28. Ra3 {[%clk 0:01:01]}  a5 {[%clk 0:00:27]} 29. Rb3 {[%clk 0:01:01]}  Rxe5 {[%clk 0:00:27]} 30. Rxb6 {[%clk 0:01:01]}  Rxh5 {[%clk 0:00:28]} 31. Ra6 {[%clk 0:01:01]}  Rf5 {[%clk 0:00:27]} 32. Kg3 {[%clk 0:00:59]}  Kh7 {[%clk 0:00:28]} 33. Ra7 {[%clk 0:00:58]}  Kg6 {[%clk 0:00:29]} 34. Kg2 {[%clk 0:00:57]}  h5 {[%clk 0:00:29]} 35. Kg3 {[%clk 0:00:58]}  Kf6 {[%clk 0:00:30]} 36. Kg2 {[%clk 0:00:57]}  g5 {[%clk 0:00:30]} 37. a4 {[%clk 0:00:57]}  h4 {[%clk 0:00:29]} 38. Ra6 {[%clk 0:00:57]}  Re5 {[%clk 0:00:28]} 39. Kf3 {[%clk 0:00:56]}  Kf5 {[%clk 0:00:28]} 40. Kg2 {[%clk 0:00:55]}  f6 {[%clk 0:00:28]} 41. Rb6 {[%clk 0:00:51]}  g4 {[%clk 0:00:25]} 42. Rb3 {[%clk 0:00:50]}  Ke4 {[%clk 0:00:20]} 43. Rb6 {[%clk 0:00:43]}  Kd4 {[%clk 0:00:19]} 44. Rb3 {[%clk 0:00:43]}  Kc4 {[%clk 0:00:19]} 45. Rb6 {[%clk 0:00:42]}  f5 {[%clk 0:00:18]} 46. Rb7 {[%clk 0:00:41]}  f4 {[%clk 0:00:18]} 47. Rb6 {[%clk 0:00:41]}  h3+ {[%clk 0:00:17]} 48. Kh2 {[%clk 0:00:41]}  Re2 {[%clk 0:00:18]} 49. Kg1 {[%clk 0:00:40]}  Re1+ {[%clk 0:00:18]} 50. Kh2 {[%clk 0:00:35]}  Rf1 {[%clk 0:00:18]} 0-1


[Site "https://www.chess.com"]

[Event "Titled Tuesday Blitz June 20 Late 2023"]
[White "Gomez Barrera, Javiera Belen"]
[Black "Santos Ruiz, Miguel"]
[WhiteFideId "3418723"]
[BlackFideId "22291482"]
[WhiteElo "2119"]
[BlackElo "2499"]
[Result "0-1"]
[Round "3"]
[TimeControl "180+2"]
[Date "2023.06.20"]
[WhiteClock "0:00:00"]
[BlackClock "0:00:41"]
[Board "72"]

1. e4 {[%clk 0:02:54]}  c5 {[%clk 0:02:59]} 2. Nf3 {[%clk 0:02:54]}  d6 {[%clk 0:03:00]} 3. d4 {[%clk 0:02:55]}  cxd4 {[%clk 0:03:01]} 4. Nxd4 {[%clk 0:02:55]}  Nf6 {[%clk 0:03:01]} 5. Nc3 {[%clk 0:02:56]}  a6 {[%clk 0:03:01]} 6. Be3 {[%clk 0:02:56]}  Qc7 {[%clk 0:02:58]} 7. f3 {[%clk 0:02:47]}  h5 {[%clk 0:02:58]} 8. Qd2 {[%clk 0:02:41]}  e6 {[%clk 0:02:58]} 9. O-O-O {[%clk 0:02:14]}  Nbd7 {[%clk 0:02:57]} 10. a3 {[%clk 0:02:12]}  Rb8 {[%clk 0:02:57]} 11. Kb1 {[%clk 0:02:10]}  b5 {[%clk 0:02:54]} 12. Be2 {[%clk 0:01:57]}  Be7 {[%clk 0:02:50]} 13. Rhg1 {[%clk 0:01:56]}  Ne5 {[%clk 0:02:43]} 14. b3 {[%clk 0:01:55]}  Bd7 {[%clk 0:02:37]} 15. Na2 {[%clk 0:01:14]}  d5 {[%clk 0:02:24]} 16. exd5 {[%clk 0:01:06]}  Nxd5 {[%clk 0:02:23]} 17. f4 {[%clk 0:01:06]}  Nc4 {[%clk 0:01:35]} 18. Bxc4 {[%clk 0:00:38]}  bxc4 {[%clk 0:01:33]} 19. b4 {[%clk 0:00:38]}  c3 {[%clk 0:01:29]} 20. Qe2 {[%clk 0:00:30]}  a5 {[%clk 0:01:27]} 21. Nb3 {[%clk 0:00:20]}  axb4 {[%clk 0:01:24]} 22. Rxd5 {[%clk 0:00:21]}  exd5 {[%clk 0:01:20]} 23. Bc5 {[%clk 0:00:21]}  Bg4 {[%clk 0:01:14]} 24. Qe3 {[%clk 0:00:13]}  d4 {[%clk 0:01:01]} 25. Bxd4 {[%clk 0:00:10]}  O-O {[%clk 0:00:59]} 26. Be5 {[%clk 0:00:10]}  Bd6 {[%clk 0:00:57]} 27. h3 {[%clk 0:00:07]}  Be6 {[%clk 0:00:52]} 28. Nxb4 {[%clk 0:00:04]}  Bxe5 {[%clk 0:00:45]} 29. Qxe5 {[%clk 0:00:05]}  Qa7 {[%clk 0:00:41]} 30. Qxc3 {[%clk 0:00:00]}  Qxg1+ {[%clk 0:00:41]} 0-1


[Site "https://www.chess.com"]

[Event "Titled Tuesday Blitz June 20 Late 2023"]
[White "Tsaruk, Maksim"]
[Black "Ansh M Shah"]
[WhiteFideId "13511173"]
[BlackFideId "25033379"]
[WhiteElo "2363"]
[BlackElo "2084"]
[Result "1-0"]
[Round "3"]
[TimeControl "180+2"]
[Date "2023.06.20"]
[WhiteClock "0:01:08"]
[BlackClock "0:01:21"]
[Board "73"]

1. d4 {[%clk 0:03:00]}  c6 {[%clk 0:02:58]} 2. Nf3 {[%clk 0:03:01]}  d5 {[%clk 0:02:59]} 3. g3 {[%clk 0:03:02]}  Nf6 {[%clk 0:02:59]} 4. Bg2 {[%clk 0:03:03]}  g6 {[%clk 0:03:00]} 5. O-O {[%clk 0:03:04]}  Bg7 {[%clk 0:03:01]} 6. c4 {[%clk 0:03:03]}  O-O {[%clk 0:03:01]} 7. Nc3 {[%clk 0:03:03]}  Bf5 {[%clk 0:03:02]} 8. Qb3 {[%clk 0:02:59]}  Qb6 {[%clk 0:03:00]} 9. c5 {[%clk 0:02:59]}  Qxb3 {[%clk 0:03:00]} 10. axb3 {[%clk 0:03:00]}  Na6 {[%clk 0:02:57]} 11. Ra4 {[%clk 0:02:58]}  Nc7 {[%clk 0:02:51]} 12. Bf4 {[%clk 0:02:54]}  Rfc8 {[%clk 0:02:51]} 13. b4 {[%clk 0:02:52]}  Ne6 {[%clk 0:02:46]} 14. Rfa1 {[%clk 0:02:46]}  Ne4 {[%clk 0:02:37]} 15. Rxa7 {[%clk 0:02:37]}  Rxa7 {[%clk 0:02:27]} 16. Rxa7 {[%clk 0:02:38]}  Nxd4 {[%clk 0:02:24]} 17. Nxd4 {[%clk 0:02:38]}  Bxd4 {[%clk 0:02:25]} 18. Nxe4 {[%clk 0:02:38]}  Bxe4 {[%clk 0:02:23]} 19. Bxe4 {[%clk 0:02:28]}  dxe4 {[%clk 0:02:24]} 20. Rxb7 {[%clk 0:02:27]}  e6 {[%clk 0:02:22]} 21. b3 {[%clk 0:02:01]}  Kg7 {[%clk 0:02:18]} 22. e3 {[%clk 0:01:56]}  Bc3 {[%clk 0:02:15]} 23. Bd6 {[%clk 0:01:50]}  Ra8 {[%clk 0:02:11]} 24. b5 {[%clk 0:01:50]}  cxb5 {[%clk 0:02:10]} 25. c6 {[%clk 0:01:50]}  Ra1+ {[%clk 0:01:56]} 26. Kg2 {[%clk 0:01:50]}  Rc1 {[%clk 0:01:57]} 27. c7 {[%clk 0:01:51]}  Ba5 {[%clk 0:01:58]} 28. b4 {[%clk 0:01:51]}  Bxc7 {[%clk 0:01:55]} 29. Rxc7 {[%clk 0:01:52]}  Rxc7 {[%clk 0:01:55]} 30. Bxc7 {[%clk 0:01:52]}  Kf6 {[%clk 0:01:51]} 31. f3 {[%clk 0:01:46]}  exf3+ {[%clk 0:01:50]} 32. Kxf3 {[%clk 0:01:47]}  Ke7 {[%clk 0:01:44]} 33. Ke4 {[%clk 0:01:46]}  f6 {[%clk 0:01:44]} 34. Kd4 {[%clk 0:01:46]}  Kd7 {[%clk 0:01:44]} 35. Bb8 {[%clk 0:01:43]}  Kc6 {[%clk 0:01:44]} 36. g4 {[%clk 0:01:42]}  h6 {[%clk 0:01:44]} 37. h4 {[%clk 0:01:41]}  h5 {[%clk 0:01:44]} 38. gxh5 {[%clk 0:01:22]}  gxh5 {[%clk 0:01:42]} 39. e4 {[%clk 0:01:22]}  Kb7 {[%clk 0:01:40]} 40. Bd6 {[%clk 0:01:16]}  Kc6 {[%clk 0:01:40]} 41. Be7 {[%clk 0:01:14]}  e5+ {[%clk 0:01:11]} 42. Kd3 {[%clk 0:01:14]}  Kd7 {[%clk 0:01:11]} 43. Bxf6 {[%clk 0:01:15]}  Ke6 {[%clk 0:01:12]} 44. Bxe5 {[%clk 0:01:16]}  Kxe5 {[%clk 0:01:13]} 45. Ke3 {[%clk 0:01:16]}  Ke6 {[%clk 0:01:13]} 46. Kd4 {[%clk 0:01:16]}  Kd6 {[%clk 0:01:14]} 47. e5+ {[%clk 0:01:16]}  Ke6 {[%clk 0:01:15]} 48. Ke4 {[%clk 0:01:17]}  Ke7 {[%clk 0:01:15]} 49. Kd5 {[%clk 0:01:17]}  Kd7 {[%clk 0:01:15]} 50. Kc5 {[%clk 0:01:03]}  Ke6 {[%clk 0:01:16]} 51. Kxb5 {[%clk 0:01:04]}  Kxe5 {[%clk 0:01:17]} 52. Kc6 {[%clk 0:01:05]}  Kf4 {[%clk 0:01:17]} 53. b5 {[%clk 0:01:06]}  Kg4 {[%clk 0:01:18]} 54. b6 {[%clk 0:01:07]}  Kxh4 {[%clk 0:01:19]} 55. b7 {[%clk 0:01:07]}  Kh3 {[%clk 0:01:16]} 56. b8=Q {[%clk 0:01:08]}  h4 {[%clk 0:01:17]} 57. Qg8 {[%clk 0:01:05]}  Kh2 {[%clk 0:01:17]} 58. Qg4 {[%clk 0:01:06]}  h3 {[%clk 0:01:18]} 59. Qf3 {[%clk 0:01:06]}  Kg1 {[%clk 0:01:17]} 60. Qxh3 {[%clk 0:01:07]}  Kf2 {[%clk 0:01:16]} 61. Kd5 {[%clk 0:01:07]}  Kg1 {[%clk 0:01:17]} 62. Kd4 {[%clk 0:01:08]}  Kf2 {[%clk 0:01:18]} 63. Ke4 {[%clk 0:01:07]}  Kg1 {[%clk 0:01:19]} 64. Qb3 {[%clk 0:01:07]}  Kf2 {[%clk 0:01:19]} 65. Qd3 {[%clk 0:01:06]}  Kg1 {[%clk 0:01:20]} 66. Qe2 {[%clk 0:01:06]}  Kh1 {[%clk 0:01:20]} 67. Kf3 {[%clk 0:01:07]}  Kg1 {[%clk 0:01:21]} 68. Qg2# {[%clk 0:01:08]} 1-0


[Site "https://www.chess.com"]

[Event "Titled Tuesday Blitz June 20 Late 2023"]
[White "Fernandez Guillen, Ernesto J."]
[Black "Vovk, Orest"]
[WhiteFideId "3512428"]
[BlackFideId "14113490"]
[WhiteElo "2434"]
[BlackElo "2215"]
[Result "1/2-1/2"]
[Round "3"]
[TimeControl "180+2"]
[Date "2023.06.20"]
[WhiteClock "0:00:03"]
[BlackClock "0:00:10"]
[Board "75"]

1. e4 {[%clk 0:02:50]}  g5 {[%clk 0:02:58]} 2. d4 {[%clk 0:02:44]}  g4 {[%clk 0:02:57]} 3. Qxg4 {[%clk 0:02:42]}  d5 {[%clk 0:02:53]} 4. Qd1 {[%clk 0:02:41]}  dxe4 {[%clk 0:02:53]} 5. Nc3 {[%clk 0:02:42]}  Nf6 {[%clk 0:02:53]} 6. Bg5 {[%clk 0:02:40]}  Nbd7 {[%clk 0:02:51]} 7. Bc4 {[%clk 0:02:38]}  Rg8 {[%clk 0:02:50]} 8. Bh4 {[%clk 0:02:37]}  Bh6 {[%clk 0:02:38]} 9. Nge2 {[%clk 0:02:31]}  Rg4 {[%clk 0:02:33]} 10. Bg3 {[%clk 0:02:30]}  c6 {[%clk 0:02:33]} 11. O-O {[%clk 0:02:28]}  Qa5 {[%clk 0:02:31]} 12. f3 {[%clk 0:02:21]}  Be3+ {[%clk 0:02:22]} 13. Kh1 {[%clk 0:02:21]}  exf3 {[%clk 0:02:21]} 14. Rxf3 {[%clk 0:02:22]}  Bh6 {[%clk 0:02:10]} 15. Qd3 {[%clk 0:02:12]}  Nf8 {[%clk 0:01:57]} 16. Raf1 {[%clk 0:02:10]}  Bd7 {[%clk 0:01:41]} 17. Rxf6 {[%clk 0:02:09]}  exf6 {[%clk 0:01:40]} 18. Ne4 {[%clk 0:02:09]}  Rxe4 {[%clk 0:00:54]} 19. Qxe4+ {[%clk 0:02:06]}  Be6 {[%clk 0:00:52]} 20. Rxf6 {[%clk 0:01:42]}  Qg5 {[%clk 0:00:51]} 21. Bh4 {[%clk 0:01:27]}  Qe3 {[%clk 0:00:44]} 22. Qxe3 {[%clk 0:01:23]}  Bxe3 {[%clk 0:00:45]} 23. Bxe6 {[%clk 0:01:21]}  Nxe6 {[%clk 0:00:46]} 24. c3 {[%clk 0:01:21]}  Kf8 {[%clk 0:00:42]} 25. h3 {[%clk 0:01:20]}  Kg7 {[%clk 0:00:35]} 26. Rf3 {[%clk 0:01:20]}  Bg5 {[%clk 0:00:32]} 27. Rg3 {[%clk 0:01:13]}  h6 {[%clk 0:00:32]} 28. Bxg5 {[%clk 0:01:11]}  hxg5 {[%clk 0:00:32]} 29. Rf3 {[%clk 0:01:11]}  Re8 {[%clk 0:00:30]} 30. Kg1 {[%clk 0:01:09]}  Kg6 {[%clk 0:00:26]} 31. g4 {[%clk 0:01:07]}  Nc5 {[%clk 0:00:21]} 32. Ng3 {[%clk 0:00:58]}  Na4 {[%clk 0:00:19]} 33. Rf2 {[%clk 0:00:38]}  Re1+ {[%clk 0:00:18]} 34. Kg2 {[%clk 0:00:37]}  Rb1 {[%clk 0:00:18]} 35. Ne4 {[%clk 0:00:26]}  Rxb2 {[%clk 0:00:17]} 36. Rxb2 {[%clk 0:00:24]}  Nxb2 {[%clk 0:00:18]} 37. Nd6 {[%clk 0:00:20]}  b5 {[%clk 0:00:18]} 38. Nc8 {[%clk 0:00:20]}  Na4 {[%clk 0:00:18]} 39. Nxa7 {[%clk 0:00:19]}  Nxc3 {[%clk 0:00:18]} 40. a3 {[%clk 0:00:17]}  Nb1 {[%clk 0:00:17]} 41. Nxc6 {[%clk 0:00:16]}  Nxa3 {[%clk 0:00:17]} 42. Kf3 {[%clk 0:00:17]}  Nc4 {[%clk 0:00:17]} 43. Ke4 {[%clk 0:00:17]}  Nd2+ {[%clk 0:00:15]} 44. Kd5 {[%clk 0:00:16]}  f5 {[%clk 0:00:15]} 45. gxf5+ {[%clk 0:00:15]}  Kxf5 {[%clk 0:00:16]} 46. Kc5 {[%clk 0:00:16]}  Nb3+ {[%clk 0:00:12]} 47. Kb4 {[%clk 0:00:06]}  Nxd4 {[%clk 0:00:11]} 48. Nxd4+ {[%clk 0:00:07]}  Kf4 {[%clk 0:00:12]} 49. Ne6+ {[%clk 0:00:06]}  Kf5 {[%clk 0:00:10]} 50. Nc5 {[%clk 0:00:03]}  g4 {[%clk 0:00:10]} 51. hxg4+ {[%clk 0:00:03]}  Kxg4 {[%clk 0:00:10]} 52. Kxb5 {[%clk 0:00:03]} 1/2-1/2


[Site "https://www.chess.com"]

[Event "Titled Tuesday Blitz June 20 Late 2023"]
[White "Velikanov, Alexander"]
[Black "Rios Escobar, Adan"]
[WhiteFideId "2039290"]
[BlackFideId "3403645"]
[WhiteElo "2259"]
[BlackElo "2473"]
[Result "1-0"]
[Round "3"]
[TimeControl "180+2"]
[Date "2023.06.20"]
[WhiteClock "0:00:14"]
[BlackClock "0:00:00"]
[Board "76"]

1. e4 {[%clk 0:03:00]}  c5 {[%clk 0:02:54]} 2. a3 {[%clk 0:02:59]}  d5 {[%clk 0:02:51]} 3. exd5 {[%clk 0:02:56]}  Nf6 {[%clk 0:02:52]} 4. Bb5+ {[%clk 0:02:49]}  Nbd7 {[%clk 0:02:49]} 5. Nf3 {[%clk 0:02:42]}  Nxd5 {[%clk 0:02:48]} 6. O-O {[%clk 0:02:42]}  e6 {[%clk 0:02:47]} 7. d4 {[%clk 0:02:38]}  a6 {[%clk 0:02:46]} 8. Be2 {[%clk 0:02:14]}  Be7 {[%clk 0:02:44]} 9. c4 {[%clk 0:02:14]}  N5f6 {[%clk 0:02:45]} 10. dxc5 {[%clk 0:02:10]}  Nxc5 {[%clk 0:02:41]} 11. Qc2 {[%clk 0:02:03]}  O-O {[%clk 0:02:36]} 12. b4 {[%clk 0:02:02]}  Nce4 {[%clk 0:02:33]} 13. Bd3 {[%clk 0:01:38]}  Nd6 {[%clk 0:02:31]} 14. Bb2 {[%clk 0:01:37]}  Qc7 {[%clk 0:02:30]} 15. Nbd2 {[%clk 0:01:21]}  h6 {[%clk 0:02:27]} 16. Be5 {[%clk 0:01:17]}  Nd7 {[%clk 0:02:24]} 17. Bf4 {[%clk 0:01:13]}  Qd8 {[%clk 0:01:45]} 18. Rad1 {[%clk 0:01:04]}  Qe8 {[%clk 0:01:27]} 19. c5 {[%clk 0:00:52]}  Nb5 {[%clk 0:01:24]} 20. a4 {[%clk 0:00:48]}  e5 {[%clk 0:01:08]} 21. axb5 {[%clk 0:00:26]}  exf4 {[%clk 0:01:08]} 22. Rfe1 {[%clk 0:00:22]}  axb5 {[%clk 0:00:59]} 23. Bxb5 {[%clk 0:00:23]}  Qd8 {[%clk 0:00:32]} 24. Nc4 {[%clk 0:00:23]}  Bf6 {[%clk 0:00:26]} 25. Nb6 {[%clk 0:00:23]}  Re8 {[%clk 0:00:06]} 26. Rxe8+ {[%clk 0:00:19]}  Qxe8 {[%clk 0:00:05]} 27. Nxa8 {[%clk 0:00:19]}  Qe6 {[%clk 0:00:02]} 28. Nc7 {[%clk 0:00:15]}  Qe7 {[%clk 0:00:01]} 29. Nd5 {[%clk 0:00:15]}  Qe6 {[%clk 0:00:02]} 30. Nxf6+ {[%clk 0:00:14]}  Nxf6 {[%clk 0:00:00]} 31. Rd8+ {[%clk 0:00:14]} 1-0


[Site "https://www.chess.com"]

[Event "Titled Tuesday Blitz June 20 Late 2023"]
[White "Adewumi, Tanitoluwa"]
[Black "Czerw, Dawid"]
[WhiteFideId "30966396"]
[BlackFideId "1145746"]
[WhiteElo "2678"]
[BlackElo "2144"]
[Result "0-1"]
[Round "3"]
[TimeControl "180+2"]
[Date "2023.06.20"]
[WhiteClock "0:00:00"]
[BlackClock "0:00:03"]
[Board "80"]

1. e4 {[%clk 0:02:49]}  c5 {[%clk 0:03:00]} 2. Nf3 {[%clk 0:02:49]}  Nc6 {[%clk 0:03:00]} 3. Bb5 {[%clk 0:02:49]}  e6 {[%clk 0:03:00]} 4. Bxc6 {[%clk 0:02:48]}  bxc6 {[%clk 0:03:01]} 5. b3 {[%clk 0:02:45]}  Ne7 {[%clk 0:03:00]} 6. Bb2 {[%clk 0:02:45]}  d6 {[%clk 0:02:58]} 7. d3 {[%clk 0:02:43]}  e5 {[%clk 0:02:58]} 8. O-O {[%clk 0:02:40]}  Ng6 {[%clk 0:02:58]} 9. Nbd2 {[%clk 0:02:36]}  Be7 {[%clk 0:02:56]} 10. c3 {[%clk 0:02:34]}  Bg4 {[%clk 0:02:47]} 11. h3 {[%clk 0:02:22]}  Be6 {[%clk 0:02:47]} 12. d4 {[%clk 0:02:19]}  cxd4 {[%clk 0:02:29]} 13. cxd4 {[%clk 0:02:20]}  f6 {[%clk 0:02:20]} 14. Rc1 {[%clk 0:02:16]}  Qd7 {[%clk 0:02:17]} 15. Qc2 {[%clk 0:02:04]}  Rc8 {[%clk 0:02:10]} 16. Rfd1 {[%clk 0:01:45]}  Bxh3 {[%clk 0:01:58]} 17. dxe5 {[%clk 0:00:53]}  fxe5 {[%clk 0:01:48]} 18. gxh3 {[%clk 0:00:47]}  Qxh3 {[%clk 0:01:46]} 19. Qc4 {[%clk 0:00:47]}  Rf8 {[%clk 0:01:02]} 20. Qf1 {[%clk 0:00:27]}  Qh5 {[%clk 0:01:01]} 21. Qa6 {[%clk 0:00:20]}  Qg4+ {[%clk 0:00:42]} 22. Kf1 {[%clk 0:00:20]}  Nf4 {[%clk 0:00:42]} 23. Ke1 {[%clk 0:00:16]}  Qh3 {[%clk 0:00:27]} 24. Rxc6 {[%clk 0:00:07]}  Qh1+ {[%clk 0:00:21]} 25. Nf1 {[%clk 0:00:07]}  Qxf3 {[%clk 0:00:13]} 26. Rxc8+ {[%clk 0:00:06]}  Kf7 {[%clk 0:00:14]} 27. Rxf8+ {[%clk 0:00:05]}  Kxf8 {[%clk 0:00:12]} 28. Qc8+ {[%clk 0:00:05]}  Kf7 {[%clk 0:00:10]} 29. Qc4+ {[%clk 0:00:05]}  Kf8 {[%clk 0:00:08]} 30. Ne3 {[%clk 0:00:04]}  Bh4 {[%clk 0:00:05]} 31. Qc8+ {[%clk 0:00:04]}  Kf7 {[%clk 0:00:05]} 32. Qf5+ {[%clk 0:00:03]}  Kg8 {[%clk 0:00:04]} 33. Qg4 {[%clk 0:00:00]}  Qxe3+ {[%clk 0:00:03]} 0-1


[Site "https://www.chess.com"]